Cogmind - Beta 14 @@@ ROGUE MODE // 2025.03.24 @ 20:29:34 Player: TryingToLearn Result: Destroyed by S-27 Virus with Autogun Performance ------------- Evolutions (3) 1500 Regions Visited (6) 1200 Robots Destroyed (40) 200 Value Destroyed (1129) 1129 Prototype IDs (5) 100 Alien Tech Used (0) 0 Bonus (246) 246 TOTAL SCORE: 4375 Bonus ------- High Alert Combat Kills 39 Follower Combat Kills 347 Friendly Fire -140 Cogmind --------- Core Integrity 0/700 Matter 205/300 Energy 100/100 System Corruption 0% Temperature Cool (0) Movement Hovering (80) Location -7/Factory Parts ------- > --- POWER (1) -------- Backup Power III > --- PROPULSION (4) --- Backup Propulsion III VTOL Module > --- UTILITY (6) ------ Advanced Visual Processing Unit Improved Signal Interpreter Improved Terrain Scan Processor Makeshift System Shield Corruption Screen > --- WEAPON (2) ------- Backup Laser III Mini Grenade Launcher > --- INVENTORY (5) ---- Light Nuclear Core Seismic Detector Component Analysis Suite Corruption Screen Peak State ------------ > --- POWER ------------ Backup Power III > --- PROPULSION ------- Backup Propulsion III Gravmag System Gravmag System VTOL Module > --- UTILITY ---------- Advanced Visual Processing Unit Improved Signal Interpreter Improved Terrain Scan Processor Hacking Suite Makeshift System Shield Corruption Screen > --- WEAPON ----------- Backup Laser III Mini Grenade Launcher > --- INVENTORY -------- Light Nuclear Core Improved Sensor Array Seismic Detector Component Analysis Suite [Rating: 42] Favorites ----------- Power Ion Engine Engine Ion Engine Power Core Nuclear Core Propulsion Light Treads Treads Light Treads Hover Unit Backup Propulsion III Flight Unit VTOL Module Utility Medium Storage Unit Device Seismic Detector Storage Medium Storage Unit Processor Advanced Visual Processing Unit Hackware Makeshift System Shield Protection Light Armor Plating Weapon Beam Cannon Energy Gun Small Laser Energy Cannon Beam Cannon Ballistic Gun Light Assault Rifle Launcher Mini Grenade Launcher Build | -11 -10 -10 -10 -9 -8 -7 ------- Run | Yrd Mat Min Exi Min Mat Fac Slots Evolved 6 | . . . . . 4 2 Power . | . . . . . . . Propulsion 2 | . . . . . 2 . Utility 4 | . . . . . 2 2 Weapon . | . . . . . . . Parts Attached 62 | 7 5 3 2 3 16 26 Power 8 | 1 1 . . 2 2 2 Engine 5 | 1 1 . . 2 . 1 Core 3 | . . . . . 2 1 Reactor . | . . . . . . . Propulsion 17 | 2 1 1 1 1 5 6 Treads 9 | 2 1 1 1 1 3 . Leg . | . . . . . . . Wheel . | . . . . . . . Hover 4 | . . . . . 2 2 Flight 4 | . . . . . . 4 Utility 27 | 2 1 2 . . 6 16 Device 9 | 1 . . . . 2 6 Storage 4 | 1 1 . . . 2 . Processor 6 | . . . . . 1 5 Hackware 4 | . . . . . . 4 Protection 4 | . . 2 . . 1 1 Artifact . | . . . . . . . Weapon 10 | 2 2 . 1 . 3 2 Energy Gun 5 | 1 1 . 1 . 1 1 Energy Cannon 3 | . 1 . . . 2 . Ballistic Gun 1 | 1 . . . . . . Ballistic Cannon . | . . . . . . . Launcher 1 | . . . . . . 1 Special Weapon . | . . . . . . . Impact Weapon . | . . . . . . . Slashing Weapon . | . . . . . . . Piercing Weapon . | . . . . . . . Special Melee Weapon . | . . . . . . . Unidentified Prototypes 3 | . . . . . 2 1 Parts Lost 21 | . 3 2 . . 3 13 Power 4 | . 1 . . . 1 2 Propulsion 7 | . . 1 . . 1 5 Utility 7 | . . 1 . . 1 5 Weapon 3 | . 2 . . . . 1 Highest Loss Streak 8 | . 3 2 . . 3 8 To Critical Strikes . | . . . . . . . Average Slot Usage (%) 90 | . 98 92 100 100 91 67 Engine 9 | . 13 14 14 14 3 3 Core 1 | . . . . . 5 2 Treads 23 | . 28 24 28 28 33 . Hover 1 | . . . . . . 5 Flight 1 | . . . . . . 9 Device 6 | . 14 6 . . 10 7 Storage 9 | . 14 14 14 14 9 . Processor 2 | . . . . . 2 10 Hackware 3 | . . . . . . 16 Protection 6 | . . 3 14 14 8 . Energy Gun 9 | . 12 14 14 14 3 4 Energy Cannon 9 | . 4 14 14 14 14 . Ballistic Gun 1 | . 9 . . . . . Peak Build Rating 42 | 7 7 8 12 12 25 42 Average Rating 14 | 5 6 6 9 12 19 26 On Entrance 9 | . 7 7 7 12 12 21 Naked Turns . | . . . . . . . Heaviest Build 96 | 12 20 22 23 23 96 13 Greatest Support 80 | 40 40 40 40 40 80 26 Greatest Overweight (x) 1 | . . . . . 1 . Average Overweight (x) . | . . . . . . . Largest Inventory Capacity 25 | 8 10 10 10 10 25 10 Average Capacity 9 | 7 8 10 10 10 12 5 Most Carried 13 | 6 8 10 10 10 13 10 Average Carried 7 | 4 7 8 8 10 10 4 Final Capacity 10 | 8 10 10 10 10 10 5 Final Carried 10 | 6 7 8 10 10 9 4 Class Distribution -------------------- 69% | Mutant 17% | Hacker-Mutant 7% | Scavenger-Mutant 3% | Commander-Mutant Dominant Class ---------------- Mutant | -10/Materials Mutant | -10/Mines Mutant | -10/Exiles Mutant | -9/Mines Mutant | -8/Materials Hacker-Mutant | -7/Factory Resources | -11 -10 -10 -10 -9 -8 -7 ----------- Run | Yrd Mat Min Exi Min Mat Fac Matter Collected 738 | 166 152 20 40 10 170 180 Remotely . | . . . . . . . Salvage Created 1513 | 19 387 85 . 47 886 89 Parts 92 | 6 23 5 . 4 41 13 Haulers Intercepted 3 | . 1 . . . 2 . Recyclers Shooed . | . . . . . . . Parts Field Recycled . | . . . . . . . Retrieved Matter . | . . . . . . . Parts Self-Destructed . | . . . . . . . Prevented . | . . . . . . . Kills | -11 -10 -10 -10 -9 -8 -7 ------- Run | Yrd Mat Min Exi Min Mat Fac Combat Hostiles Destroyed 26 | . 3 5 . 2 12 4 Melee 1 | . . 1 . . . . Guns 6 | . 3 1 . 1 1 . Cannons 13 | . . 2 . 1 10 . AOE 4 | . . . . . . 4 Classes Destroyed 13 | 1 5 1 . . 4 2 Worker 2 | . 1 . . . . 1 Builder 1 | . . . . . 1 . Tunneler 2 | 2 . . . . . . Hauler 3 | . 1 . . . 2 . Recycler 3 | . 2 . . . 1 . Operator 1 | . . . . . . 1 Watcher 1 | . 1 . . . . . Swarmer 7 | . . 3 . 1 . 3 Grunt 14 | . 3 2 . 1 8 . Sentry 2 | . . . . . 2 . Hunter 2 | . . . . . 2 . Programmer 1 | . . . . . . 1 Heavy 1 | . . . . . 1 . Best Kill Streak 5 | 2 3 3 . 1 5 2 Combat Bots Only 3 | . 2 3 . 1 3 2 Max Kills in Single Turn 2 | 2 2 1 . 1 1 2 Gunslinging . | . . . . . . . Exploded 2 | . . . . . . 2 Melee 1 | . . 1 . . . . Uniques/NPCs Destroyed . | . . . . . . . Combat | -11 -10 -10 -10 -9 -8 -7 -------- Run | Yrd Mat Min Exi Min Mat Fac Hostile Shots Fired 362 | . 26 44 . 3 73 216 Missed 149 | . 2 14 . 2 29 102 Damage Taken 3005 | . 417 329 . 22 953 1284 Core 1004 | . 16 89 . 10 183 706 Absorbed by Shields 41 | . . . . . . 41 Core Remaining (%) 73 | 100 . . . 54 66 . Volleys Fired 112 | 3 26 14 . 2 43 24 Largest 2 | 2 2 2 . 2 2 2 Hottest 137 | 60 100 100 . 110 137 70 Shots Fired 197 | 6 45 28 . 4 86 28 Gun 94 | 6 32 14 . 2 17 23 Cannon 98 | . 13 14 . 2 69 . Launcher 5 | . . . . . . 5 Special . | . . . . . . . Kinetic 16 | 3 13 . . . . . Thermal 156 | . 15 28 . 4 86 23 Explosive 5 | . . . . . . 5 Electromagnetic 20 | 3 17 . . . . . Robot Hit Streak 14 | 2 11 10 . 12 14 12 Robot Miss Streak 3 | 1 3 3 . . 2 3 Penetration Max . | . . . . . . . Secondary Targets . | . . . . . . . Shots Hit Robots 134 | 3 30 23 . 3 54 21 Core Hits 62 | 2 15 9 . 2 23 11 Critical Kills 1 | . . 1 . . . . Critical Parts Destroyed . | . . . . . . . Critical Strikes 2 | . . 1 . . 1 . Burn 1 | . . . . . 1 . Meltdown 1 | . . 1 . . . . Melee Attacks . | . . . . . . . Impact . | . . . . . . . Slashing . | . . . . . . . Piercing . | . . . . . . . Sneak Attacks . | . . . . . . . Combat Hostiles . | . . . . . . . Follow-up Attacks . | . . . . . . . Damage Inflicted 3232 | 133 583 356 . 51 1369 740 Guns 1110 | 26 270 131 . 34 316 333 Cannons 1473 | . 211 192 . 17 1053 . Explosions 616 | 107 102 . . . . 407 Melee . | . . . . . . . Ramming 33 | . . 33 . . . . Kinetic 93 | 14 79 . . . . . Thermal 2507 | 107 324 323 . 51 1369 333 Explosive 407 | . . . . . . 407 Electromagnetic 192 | 12 180 . . . . . Impact . | . . . . . . . Slashing . | . . . . . . . Piercing . | . . . . . . . Highest Corruption . | . . . . . . . Average Corruption . | . . . . . . . Corruption Purged . | . . . . . . . Corruption Blocked 4 | . . . . . . 4 Overload Shots . | . . . . . . . Overflow Damage 75 | 12 17 . . . 21 25 Projectiles 38 | . 17 . . . 21 . Explosions 37 | 12 . . . . . 25 Melee . | . . . . . . . Knockbacks . | . . . . . . . Impact . | . . . . . . . Kinetic . | . . . . . . . Secondary . | . . . . . . . Self-Inflicted Damage 102 | . 55 . . . . 47 Shots 4 | . 1 . . . . 3 Rammed 15 | . . 15 . . . . Targets Rammed 15 | . . 15 . . . . Kicked . | . . . . . . . Crushed . | . . . . . . . Highest Temperature 398 | 20 341 351 . 63 398 133 Average Temperature 96 | 15 110 136 . 34 86 55 Received Heat Transfer 951 | . 234 186 . 6 297 228 Effects 2 | . 1 1 . . . . Shutdowns 1 | . 1 . . . . . Energy Bleed 1 | . . 1 . . . . Siege Activations . | . . . . . . . Robots Corrupted . | . . . . . . . Combat Hostiles . | . . . . . . . Parts Fried . | . . . . . . . Impact Corruptions . | . . . . . . . Robots Melted 2 | . . 1 . . 1 . Combat Hostiles 2 | . . 1 . . 1 . Parts Melted 9 | . 1 1 . . 6 1 Heat Transferred 4471 | 100 519 707 . 111 2331 703 Parts Sabotaged . | . . . . . . . Parts Stolen . | . . . . . . . Parts Stripped . | . . . . . . . Power Chain Reactions 2 | 1 1 . . . . . Alert | -11 -10 -10 -10 -9 -8 -7 ------- Run | Yrd Mat Min Exi Min Mat Fac Peak Influence 439 | 10 112 106 . 230 439 345 Initial 199 | . 6 6 . . 89 199 Average 138 | 3 31 55 . 121 228 191 Maximum Alert Level 2 | . . . . 1 2 1 Low Security (%) 66 | 100 100 100 . 77 45 39 Level 1 28 | . . . . 22 38 60 Level 2 4 | . . . . . 15 . Level 3 . | . . . . . . . Level 4 . | . . . . . . . Level 5 . | . . . . . . . High Security . | . . . . . . . Max Security . | . . . . . . . Squads Dispatched 9 | . 1 . . . 5 3 Investigation 3 | . . . . . 2 1 Extermination 1 | . . . . . . 1 Reinforcement 5 | . 1 . . . 3 1 Assault . | . . . . . . . Garrison . | . . . . . . . Intercept . | . . . . . . . Searches Triggered . | . . . . . . . Construction Impeded 1 | . . . . . . 1 Haulers Reinforced . | . . . . . . . Active Scanning Responses . | . . . . . . . Cargo Convoy Interrupts . | . . . . . . . Stealth | -11 -10 -10 -10 -9 -8 -7 --------- Run | Yrd Mat Min Exi Min Mat Fac Distress Signals 3 | . 2 . . . 1 . Communications Jammed . | . . . . . . . Distress Signals . | . . . . . . . Times Spotted 60 | . 11 5 . 5 19 20 Peak Tracking Total 5 | . 3 3 . 3 4 5 Tactical Retreats 6 | . 1 . . . 2 3 Traps | -11 -10 -10 -10 -9 -8 -7 ------- Run | Yrd Mat Min Exi Min Mat Fac Traps Triggered 4 | . . . . . 1 3 Indirectly . | . . . . . . . Trap Hack Attempts . | . . . . . . . Triggered . | . . . . . . . Disarmed . | . . . . . . . Reprogrammed . | . . . . . . . Reused . | . . . . . . . Traps Extracted . | . . . . . . . Installed . | . . . . . . . Triggered . | . . . . . . . Machines | -11 -10 -10 -10 -9 -8 -7 ---------- Run | Yrd Mat Min Exi Min Mat Fac Machines Disabled 4 | . 1 . . 1 1 1 Max in Single Turn 1 | . 1 . . . 1 1 Machines Repaired . | . . . . . . . Machines Dismantled . | . . . . . . . Machines Sabotaged . | . . . . . . . Overloaded Fab Kills . | . . . . . . . Hacking | -11 -10 -10 -10 -9 -8 -7 --------- Run | Yrd Mat Min Exi Min Mat Fac Machines Accessed 16 | . 2 . 1 . 1 12 Terminals 8 | . 2 . . . . 6 Fabricators 2 | . . . . . . 2 Repair Stations 2 | . . . . . . 2 Recycling Units 1 | . . . . . . 1 Scanalyzers 2 | . . . . . 1 1 Garrison Access . | . . . . . . . Total Hacks 44 | . 7 . 1 . 4 32 Successful 24 | . 4 . 1 . 3 16 Failed 20 | . 3 . . . 1 16 Catastrophic 3 | . . . . . . 3 Database Lockouts . | . . . . . . . Manual 11 | . 2 . . . . 9 Terminals 23 | . 7 . . . . 16 Fabricators 4 | . . . . . . 4 Repair Stations 6 | . . . . . . 6 Recycling Units 4 | . . . . . . 4 Scanalyzers 6 | . . . . . 4 2 Garrison Access . | . . . . . . . Terminal Hacks 8 | . 3 . 1 . . 4 Record 2 | . . . 1 . . 1 Robot Analysis 1 | . . . . . . 1 Prototype ID Bank 1 | . 1 . . . . . Unreport Threat 1 | . . . . . . 1 Transport Status 1 | . 1 . . . . . Recall Investigation 1 | . . . . . . 1 Registered Components 1 | . 1 . . . . . Fabricator Hacks 3 | . . . . . . 3 Network Status 2 | . . . . . . 2 Build 1 | . . . . . . 1 Repair Station Hacks 4 | . . . . . . 4 Scan Component 2 | . . . . . . 2 Repair 1 | . . . . . . 1 Refit 1 | . . . . . . 1 Recycling Unit Hacks 2 | . . . . . . 2 Report Inventory 1 | . . . . . . 1 Retrieve Components 1 | . . . . . . 1 Scanalyzer 4 | . . . . . 3 1 Insert Component 3 | . . . . . 2 1 Analyze 1 | . . . . . 1 . Garrison Access Hacks . | . . . . . . . Unauthorized Hacks 3 | . 1 . . . . 2 Terminals 3 | . 1 . . . . 2 Assimilate 1 | . . . . . . 1 Botnet 2 | . 1 . . . . 1 Fabricators . | . . . . . . . Repair Stations . | . . . . . . . Recycling Units . | . . . . . . . Scanalyzers . | . . . . . . . Garrison Access . | . . . . . . . Data Cores Recovered . | . . . . . . . Used . | . . . . . . . Hacking Detections 13 | . 2 . . . 1 10 Full Trace Events 2 | . . . . . 1 1 Feedback Events . | . . . . . . . Feedback Blocked . | . . . . . . . Robot Schematics Acquired . | . . . . . . . Robots Built 3 | . . . . . . 3 Authchips . | . . . . . . . Time 67 | . . . . . . 67 Total Robot Build Rating 12 | . . . . . . 12 Part Schematics Acquired 1 | . . . . . 1 . Parts Built . | . . . . . . . Authchips . | . . . . . . . Time . | . . . . . . . Total Part Build Rating . | . . . . . . . Parts Repaired . | . . . . . . . Time 53 | . . . . . . 53 Parts Recycled . | . . . . . . . Recycled Matter . | . . . . . . . Retrieved Matter . | . . . . . . . Retrieved Components 3 | . . . . . . 3 Parts Scanalyzed 3 | . . . . . 2 1 Part Schematics Acquired 1 | . . . . . 1 . Parts Damaged 1 | . . . . . . 1 Bothacking | -11 -10 -10 -10 -9 -8 -7 ------------ Run | Yrd Mat Min Exi Min Mat Fac Used RIF Installer . | . . . . . . . Robots Hacked . | . . . . . . . Non-combat . | . . . . . . . Combat . | . . . . . . . Robot Hacks Applied . | . . . . . . . Relay Couplers Released . | . . . . . . . Fabnet Peak Effective % . | . . . . . . . Robots Rewired 4 | . . . 4 . . . Allies Hacked . | . . . . . . . Hacks Repelled . | . . . . . . . Allies | -11 -10 -10 -10 -9 -8 -7 -------- Run | Yrd Mat Min Exi Min Mat Fac Total Allies 10 | . . . 4 3 . 3 Largest Group 6 | . . . 4 6 6 3 Highest-Rated Group 77 | . . . 45 77 77 60 Highest-Rated Ally 21 | . . . 21 21 21 20 Total Orders . | . . . . . . . Ally Attacks 84 | . . . . 14 59 11 Total Damage 1070 | . . . . 161 720 189 Kills 18 | . . . . 6 9 3 Allies Corrupted . | . . . . . . . Allies Melted . | . . . . . . . Intel | -11 -10 -10 -10 -9 -8 -7 ------- Run | Yrd Mat Min Exi Min Mat Fac Robot Analysis Total 1 | . . . . . . 1 Derelict Logs Recovered 1 | . . 1 . . . . Drone Launches . | . . . . . . . Drone Recoveries . | . . . . . . . Exploration | -11 -10 -10 -10 -9 -8 -7 ------------- Run | Yrd Mat Min Exi Min Mat Fac Turns Passed 3147 | 117 497 320 769 106 716 622 Spaces Moved 2142 | 56 227 150 455 60 302 892 Core 105 | 4 . . . . . 101 Treads 1246 | 52 227 150 455 60 302 . Legs . | . . . . . . . Wheels . | . . . . . . . Hover 382 | . . . . . . 382 Flight 409 | . . . . . . 409 Fastest Speed 32 | 50 160 160 160 160 160 32 Average Speed 116 | 152 160 160 160 160 171 51 Slowest Speed 240 | 160 160 160 160 160 240 80 Overloaded Moves . | . . . . . . . Propulsion Burnouts . | . . . . . . . Robots Hopped . | . . . . . . . Cave-ins Triggered . | . . . . . . . Exploration Rate (%) 35 | 5 35 38 90 20 36 25 Regions Visited 6 Branch Regions 3 Pre-discovered Areas . | . . . . . . . Known Exits Taken . | . . . . . . . Unknown Exits Taken 6 | 1 1 1 1 1 1 . Scrap Searched 1 | . . 1 . . . . Spaces Dug . | . . . . . . . Terrain Destroyed 31 | 7 8 . . . 6 10 Melee . | . . . . . . . Projectile 6 | . . . . . 6 . AOE 25 | 7 8 . . . . 10 Terrain Rammed . | . . . . . . . Walls Destroyed . | . . . . . . . Machines Disabled . | . . . . . . . Actions | -11 -10 -10 -10 -9 -8 -7 --------- Run | Yrd Mat Min Exi Min Mat Fac Total 2598 | 79 321 190 498 68 416 1026 Wait 149 | 8 47 6 . 1 31 56 Move 2136 | 55 226 149 454 59 301 892 Hop . | . . . . . . . Pick Up 33 | 6 9 3 5 . 8 2 Fast Attach 32 | 7 1 . . . 11 13 Attach 18 | . 2 2 2 . 2 10 Detach 14 | . . . . . 4 10 Swap 12 | . 2 1 . 3 3 3 Drop 35 | . 8 . 3 3 13 8 Fire 112 | 3 26 14 . 2 43 24 Melee . | . . . . . . . Ram . | . . . . . . . Kick . | . . . . . . . Crush 15 | . . 15 . . . . Escape Stasis 8 | . . . . . . 8 Rewire 34 | . . . 34 . . . Trap . | . . . . . . . Miscellaneous . | . . . . . . . Route ------- -11/Scrapyard -10/Materials (discovered 2 exits: [*Mat] / [*Min]) -10/Mines (discovered 3 exits: [*Mat x2] / *Exi) -10/Exiles -9/Mines -8/Materials -7/Factory History --------- Turn | Location | Event 35 | -11/Scrapyard | Discovered new exit (range 16) 118 | -11/Scrapyard | Entered Materials 301 | -10/Materials | Discovered new exit (range 8) 308 | -10/Materials | Build established: Mutant 500 | -10/Materials | Lost 3 parts (1p2w) 596 | -10/Materials | Discovered new exit (range 12) 615 | -10/Materials | Entered Mines 626 | -10/Mines | Met a Derelict bent on vengeance 818 | -10/Mines | Discovered new exit (range 13) 859 | -10/Mines | Learned Materials security intel 901 | -10/Mines | Discovered new exit (range 11) 926 | -10/Mines | Deemed a non-threat by the Exiles lab entrance 926 | -10/Mines | Discovered new exit (range 5) 935 | -10/Mines | Entered Exiles 935 | -10/Exiles | Found Exiles lab destroyed 1687 | -10/Exiles | Discovered new exit (range 12) 1704 | -10/Exiles | Entered Mines 1704 | -9/Mines | Accompanied by 4 allies 1756 | -9/Mines | Assisted by bots powering up and referring to "LRC-V3" 1772 | -9/Mines | Discovered new exit (range 9) 1810 | -9/Mines | Entered Materials 1810 | -8/Materials | Accompanied by 6 allies 1810 | -8/Materials | Evolved 4 slots: Propulsion x2, Utility x2 1878 | -8/Materials | Lost 3 allies 2479 | -8/Materials | Discovered new exit (range 13) 2521 | -8/Materials | Lost 3 parts (1p1n1u) 2526 | -8/Materials | Entered Factory 2526 | -7/Factory | Evolved 2 slots: Utility x2 2741 | -7/Factory | Fabricated B-48 Gladiator? 2809 | -7/Factory | Core integrity fell below 50% 2821 | -7/Factory | Lost 8 parts (2p2n3u1w) 2835 | -7/Factory | Core integrity fell below 20% 2880 | -7/Factory | Build established: Hacker-Mutant 3148 | -7/Factory | Destroyed by S-27 Virus with Autogun Last Messages --------------- 03129_ The unstable cave ceiling collapses. 03129_ U-05 Engineer lays Concrete. 03130_ U-05 Engineer destroyed. 03130_ Destroyed Lgt. Ion Engine. 03130_ Destroyed Wheel. 03130_ S-27 Virus destroyed. 03130_ U-05 Engineer lays Concrete. 03130_ ALERT: Construction progress impeded, dispatching reinforcements to local area. 03131_ U-05 Engineer lays Concrete. 03136_ R-06 Scavenger collects VTOL Module. 03137_ U-05 Engineer lays Concrete. 03140_ R-06 Scavenger collects Autogun. 03140_ U-05 Engineer lays Concrete. 03144_ R-06 Scavenger collects Shock Rifle. 03145_ Connecting with Terminal... 03145_ U-05 Engineer lays Concrete. 03145_ R-06 Scavenger collects VTOL Module. 03146_ K-01 Serf cleans the Matter Pump. 03146_ Gravmag System destroyed. 03146_ U-05 Engineer lays Concrete. Map ----- +----------------------------------------------------+ | ?????# #????# #?# """## | | ?????###+###############+##+### """## "Y | | ?????? ????# # ! """## "" | | ???? #??# """"" # ! ##+####+### | | ?? #??# !! """"" # ! #?????????? | | """"""" #??# !! """ ##########?????????? | | """"""" #??# !! #??????????????????? | | """"""" #??# = #??????????????????? | | """"""" ###########+#######??????????????????? | | """T""" #??????????????????????? | | """ """ ######?????????????????? | | +?????????????????? | | ######?????????????????? | | ????### #??????????????????????? | | ??????######## #??????????????????????? | | ????????? # ##########+####????????? | | ?????????? # #????????? | | ???????????? + #????????? | | ?????????????# u +????????? | | ?????????????# !!! """k""" """ #????????? | | ?????????????# !!! """ """ """ #????????? | | ?????????????# !!! """ """ """ ###### ?????????? | | ???# ######### #???????????????? | | ???# """ """ "" u #???????????????? | | ???# "R """ | u ######/#????????? | | ???# """ """=%@r " + ??????? | | ???# s !% r ### ????????? | | m #???????????????? | | ?########+#+###########s# ##???????????????? | | ????????????????# ###????????????????? | | ????????????????# """ "T" ##??????????????????? | | ????????????????# """ #???????????????????? | | ????????????????# """ #???????????????????? | | ????????????????# "" #???????????????????? | | ????????????????# "" #???????????????????? | | ????????????????# #???????????????????? | | ????????????????# #???????????????????? | | ????????????????# #???????????????????? | | ????????????????# Y #???????????????????? | | ????????????????# ? ]! #???????????????????? | | ??????????????????? ! #???????????????????? | | ???????????????????##### #####???????????????????? | | ???????????????????????###???????????????????????? | | ?????????????????????????????????????????????????? | | ?????????????????????????????????????????????????? | | ?????????????????????????????????????????????????? | | ?????????????????????????????????????????????????? | | ?????????????????????????????????????????????????? | | ?????????????????????????????????????????????????? | | ?????????????????????????????????????????????????? | +----------------------------------------------------+ Best States ------------- Heat Dissipation 53 Energy Generation 14 Energy Capacity 250 Matter Stores 300 Matter Capacity 300 Sight Range 20 Robot Scan Range 15 Terrain Scan Density 110 Jamming Range 14 Corruption Block 8 Armor Coverage 225 Evasion (%) 63 Recoil Reduction 4 Particle Charging 15 Offensive Hacking 10 Defensive Hacking 21 Item Schematics ----------------- Imp. Sensor Array | -8/Materials | Scanalyzed Robot Schematics ------------------ None Fabricated ------------ B-48 Gladiator | x3 | -7/Factory | Preloaded Alien Tech Used ----------------- None Achievements -------------- Fist Fight Challenges ------------ None Game ------ Seed GrenadeChargeDriver Manual? 0 Play Time 00:36:32 Cumulative 48.1 hours Start 2025.03.24 @ 19:27:26 End 2025.03.24 @ 20:29:34 Sessions 1 Manual Loads 0 Difficulty Rogue Special Mode None Game No. 42 Rogue 42 Adventurer 0 Explorer 0 Win Type - Total 1 Types 1/0/0/0/0/0/0/0/0 Lore% 17 Gallery% 42 Achievement% 30 Wizard Run 0 Options --------- Layout 0 ASCII 0 Keyboard 1 Movement Numpad Keybinds 0 Fullscreen 0 Font 16/SmallcapsGlow Map View 88x55 Zoom Use 0% Tactical HUD 1 Map Filters NONE Filters NONE Steam 1 RUN: dc6b91c0-7a7e-4e1e-b845-f42ef00e5e5b